fUST/lending_fUST_20240706
["ID","MTS","AMOUNT","RATE_DAILY","PERIOD"]
[331362807,1720275049578,-761.05,0.00043835,120]
[331362809,1720275049598,-500.0,0.00043835,120]
[331362810,1720275049613,-1653.78,0.00043835,120]
[331362811,1720275049625,-578.64,0.00043835,120]
[331362812,1720275049636,-500.82146768,0.00043835,120]
[331362813,1720275049648,-515.93685703,0.00043835,120]
[331362815,1720275049659,-500.0,0.00043835,120]
[331362817,1720275049670,-500.0,0.00043835,120]
[331362818,1720275049682,-500.0,0.00043835,120]
[331362819,1720275049693,-500.0,0.00043835,120]
[331362820,1720275049705,-500.0,0.00043835,120]
[331362821,1720275049724,-500.0,0.00043835,120]
[331362822,1720275049734,-752.71,0.00043835,120]
[331362827,1720275049800,-505.58530969,0.00043835,120]
[331362828,1720275049839,-500.0,0.00043835,120]
[331362829,1720275049872,-4270.67,0.00043835,120]
[331362830,1720275049883,-500.82472071,0.00043835,120]
[331362831,1720275049911,-188.59457169,0.00043835,120]
[331362832,1720275049936,-501.45298817,0.00043835,120]
[331362833,1720275049971,-500.0,0.00043835,120]
[331362834,1720275049982,-500.0,0.00043835,120]
[331362835,1720275050007,-516.29788946,0.00043835,120]
[331362836,1720275050055,-195.42579939,0.00043835,120]
[331362837,1720275050068,-500.0,0.00043835,120]
[331362838,1720275050086,-534.10763891,0.00043835,120]
[331362839,1720275050109,-500.0,0.00043835,120]
[331362840,1720275050120,-500.66860635,0.00043835,120]
[331362841,1720275050131,-500.0,0.00043835,120]
[331362842,1720275050141,-500.0,0.00043835,120]
[331362843,1720275050161,-500.0,0.00043835,120]
[331362844,1720275050185,-584.5,0.00043835,120]
[331362845,1720275050196,-500.0,0.00043835,120]
[331362846,1720275050206,-502.44006132,0.00043835,120]
[331362847,1720275050229,-500.0,0.00043835,120]
[331362848,1720275050286,-601.93,0.00043835,120]
[331362849,1720275050335,-501.45129689,0.00043835,120]
[331362850,1720275050364,-500.0,0.00043835,120]
[331362851,1720275050381,-1169.36,0.00043835,120]
[331362852,1720275050392,-1286.46,0.00043835,120]
[331362853,1720275050404,-500.38449014,0.00043835,120]
[331362854,1720275050489,-500.0,0.00043835,120]
[331362855,1720275050544,-500.0,0.00043835,120]
[331362856,1720275050562,-500.0,0.00043835,120]
[331362857,1720275050574,-500.0,0.00043835,120]
[331362858,1720275050593,-505.12422803,0.00043835,120]
[331362859,1720275050603,-500.0,0.00043835,120]
[331362860,1720275050614,-500.0,0.00043835,120]
[331362861,1720275050624,-500.0,0.00043835,120]
[331362862,1720275050652,-169.382781,0.00043835,14]
[331362863,1720275050661,-169.382781,0.00043835,14]
[331362864,1720275050723,-230.813021,0.00043835,14]
[331362865,1720275050765,-169.382781,0.00043835,14]
[331362866,1720275050789,-169.382781,0.00043835,14]
[331362867,1720275050844,-169.382781,0.00043835,14]
[331362868,1720275050893,-169.382781,0.00043835,14]
[331362869,1720275050911,-169.382781,0.00043835,14]
[331362870,1720275050922,-169.382781,0.00043835,14]
[331362873,1720275050955,-169.382781,0.00043835,14]
[331362878,1720275051020,-169.382781,0.00043835,14]
[331362879,1720275051033,-169.382781,0.00043835,14]
[331362880,1720275051043,-169.382781,0.00043835,14]
[331362883,1720275051060,-169.382781,0.00043835,14]
[331362885,1720275051071,-169.382781,0.00043835,14]
[331362886,1720275051082,-169.382781,0.00043835,14]
[331362887,1720275051104,-169.382781,0.00043835,14]
[331362889,1720275051114,-169.382781,0.00043835,14]
[331362895,1720275051187,-169.382781,0.00043835,14]
[331362897,1720275051198,-169.382781,0.00043835,14]
[331362902,1720275051226,-169.382776,0.00043835,14]
[331362907,1720275051267,-4240.4,0.00043835,120]
[331362912,1720275051297,-849.34,0.00043835,120]
[331362914,1720275051310,-151.0,0.00043835,14]
[331362919,1720275051343,-151.0,0.00043835,14]
[331362927,1720275051387,-151.0,0.00043835,14]
[331362934,1720275051436,-151.0,0.00043835,14]
[331362935,1720275051447,-151.0,0.00043835,14]
[331362939,1720275051463,-501.61407002,0.00043835,120]
[331362943,1720275051476,-151.0,0.00043835,14]
[331362947,1720275051505,-500.0,0.00043835,120]
[331362948,1720275051515,-151.0,0.00043835,14]
[331362949,1720275051527,-151.0,0.00043835,14]
[331362951,1720275051537,-500.60007697,0.00043835,120]
[331362953,1720275051554,-151.0,0.00043835,14]
[331362956,1720275051578,-151.0,0.00043835,14]
[331362958,1720275051590,-230.813021,0.00043835,14]
[331362959,1720275051626,-151.0,0.00043835,14]
[331362960,1720275051645,-230.813021,0.00043835,14]
[331362961,1720275051654,-500.0,0.00043835,120]
[331362962,1720275051698,-164.006757,0.00043835,14]
[331362963,1720275051729,-230.813021,0.00043835,14]
[331362964,1720275051745,-230.813021,0.00043835,14]
[331362965,1720275051757,-500.0,0.00043835,120]
[331362966,1720275051767,-230.813021,0.00043835,14]
[331362967,1720275051783,-230.813021,0.00043835,14]
[331362968,1720275051828,-230.813021,0.00043835,14]
[331362969,1720275051843,-230.813021,0.00043835,14]
[331362970,1720275051900,-230.813021,0.00043835,14]
[331362971,1720275051912,-230.813021,0.00043835,14]
[331362972,1720275051924,-230.813021,0.00043835,14]
[331362973,1720275051934,-503.67622111,0.00043835,120]
[331362974,1720275051945,-858.22,0.00043835,120]
[331362975,1720275051956,-500.0,0.00043835,120]
[331362976,1720275051966,-230.813021,0.00043835,14]
[331362977,1720275052005,-230.813021,0.00043835,14]
[331362978,1720275052016,-230.813021,0.00043835,14]
[331362979,1720275052029,-230.813021,0.00043835,14]
[331362980,1720275052040,-500.0,0.00043835,120]
[331362981,1720275052082,-500.0,0.00043835,120]
[331362982,1720275052094,-500.0,0.00043835,120]
[331362983,1720275052123,-500.0,0.00043835,120]
[331362984,1720275052134,-230.813021,0.00043835,14]
[331362985,1720275052203,-388.79257547,0.00043835,120]
[331362986,1720275052230,-230.813021,0.00043835,14]
[331362987,1720275052337,-3321.57,0.00043835,120]
[331362988,1720275052349,-3411.992886,0.00043835,14]
[331362989,1720275052381,-3411.992886,0.00043835,14]
[331362990,1720275052399,-3411.992886,0.00043835,14]
[331362991,1720275052409,-8116.33,0.00043835,120]
[331362992,1720275052419,-3411.992886,0.00043835,14]
[331362993,1720275052429,-3411.992886,0.00043835,14]
[331362994,1720275052439,-3411.992886,0.00043835,14]
[331362995,1720275052450,-3411.992886,0.00043835,14]
[331362996,1720275052462,-3411.992886,0.00043835,14]
[331362997,1720275052488,-796.33,0.00043835,120]
[331362998,1720275052507,-4954.89,0.00043835,120]
[331362999,1720275052524,-3411.992886,0.00043835,14]
[331363000,1720275052535,-3411.992886,0.00043835,14]
[331363001,1720275052545,-3411.992886,0.00043835,14]
[331363002,1720275052557,-230.813021,0.00043835,14]
[331363003,1720275052567,-3411.992886,0.00043835,14]
[331363004,1720275052589,-230.813021,0.00043835,14]
[331363005,1720275052602,-3411.992886,0.00043835,14]
[331363006,1720275052623,-500.0,0.00043835,120]
[331363007,1720275052634,-3411.992886,0.00043835,14]
[331363008,1720275052652,-500.0,0.00043835,120]
[331363009,1720275052681,-522.91349095,0.00043835,120]
[331363010,1720275052691,-3411.992886,0.00043835,14]
[331363011,1720275052701,-151.0,0.00043835,14]
[331363012,1720275052713,-500.0,0.00043835,120]
[331363013,1720275052736,-3411.992886,0.00043835,14]
[331363014,1720275052766,-151.0,0.00043835,14]
[331363015,1720275052778,-500.0,0.00043835,120]
[331363016,1720275052789,-151.0,0.00043835,14]
[331363017,1720275052800,-500.0,0.00043835,120]
[331363018,1720275052843,-3411.992886,0.00043835,14]
[331363019,1720275052869,-500.0,0.00043835,120]
[331363020,1720275052892,-151.0,0.00043835,14]
[331363022,1720275052924,-500.0,0.00043835,120]
[331363024,1720275052936,-151.0,0.00043835,14]
[331363025,1720275052978,-3411.992886,0.00043835,14]
[331363028,1720275053007,-500.0,0.00043835,120]
[331363030,1720275053017,-500.0,0.00043835,120]
[331363031,1720275053031,-176.58256,0.00043835,14]
[331363034,1720275053076,-3411.992886,0.00043835,14]
[331363036,1720275053124,-500.0,0.00043835,120]
[331363039,1720275053148,-500.0,0.00043835,120]
[331363042,1720275053194,-635.86647357,0.00043835,120]
[331363043,1720275053205,-3411.992892,0.00043835,14]
[331363044,1720275053217,-500.0,0.00043835,120]
[331363045,1720275053228,-500.0,0.00043835,120]
[331363046,1720275053238,-500.0,0.00043835,120]
[331363047,1720275053261,-500.0,0.00043835,120]
[331363048,1720275053271,-500.0,0.00043835,120]
[331363049,1720275053294,-500.0,0.00043835,120]
[331363050,1720275053337,-500.0,0.00043835,120]
[331363051,1720275053358,-500.0,0.00043835,120]
[331363052,1720275053368,-500.0,0.00043835,120]
[331363053,1720275053378,-500.0,0.00043835,120]
[331363054,1720275053389,-500.0,0.00043835,120]
[331363055,1720275053408,-500.0,0.00043835,120]
[331363056,1720275053420,-500.0,0.00043835,120]
[331363057,1720275053431,-500.0,0.00043835,120]
[331363058,1720275053442,-500.0,0.00043835,120]
[331363059,1720275053467,-500.0,0.00043835,120]
[331363060,1720275053499,-571.186229,0.00043835,14]
[331363061,1720275053514,-500.0,0.00043835,120]
[331363062,1720275053530,-571.186229,0.00043835,14]
[331363063,1720275053543,-500.0,0.00043835,120]
[331363064,1720275053584,-459.66288066,0.00043835,120]
[331363065,1720275053618,-571.186229,0.00043835,14]
[331363066,1720275053649,-500.0,0.00043835,120]
[331363067,1720275053710,-571.186229,0.00043835,14]
[331363068,1720275053747,-2596.93,0.00043835,120]
[331363069,1720275053762,-500.0,0.00043835,120]
[331363070,1720275053827,-571.186229,0.00043835,14]
[331363071,1720275053837,-500.0,0.00043835,120]
[331363072,1720275053858,-571.186229,0.00043835,14]
[331363073,1720275053869,-500.0,0.00043835,120]
[331363074,1720275053922,-1924.17,0.00043835,120]
[331363075,1720275053934,-571.186229,0.00043835,14]
[331363076,1720275053958,-500.0,0.00043835,120]
[331363077,1720275053969,-571.186229,0.00043835,14]
[331363078,1720275053981,-500.0,0.00043835,120]
[331363079,1720275053991,-500.0,0.00043835,120]
[331363080,1720275054012,-3621.566451,0.00043835,14]
[331363081,1720275054108,-3621.566451,0.00043835,14]
[331363082,1720275054119,-3621.566451,0.00043835,14]
[331363083,1720275054146,-571.186229,0.00043835,14]
[331363084,1720275054166,-500.0,0.00043835,120]
[331363085,1720275054176,-3621.566451,0.00043835,14]
[331363086,1720275054187,-571.186229,0.00043835,14]
[331363087,1720275054199,-500.0,0.00043835,120]
[331363088,1720275054209,-3621.566451,0.00043835,14]
[331363089,1720275054231,-502.44208996,0.00043835,120]
[331363090,1720275054285,-3621.566451,0.00043835,14]
[331363091,1720275054296,-571.186229,0.00043835,14]
[331363092,1720275054349,-3621.566451,0.00043835,14]
[331363093,1720275054360,-571.186229,0.00043835,14]
[331363094,1720275054384,-500.0,0.00043835,120]
[331363095,1720275054414,-3621.566451,0.00043835,14]
[331363096,1720275054444,-3621.566451,0.00043835,14]
[331363097,1720275054460,-3621.566451,0.00043835,14]
[331363098,1720275054472,-571.186229,0.00043835,14]
[331363099,1720275054486,-514.96,0.00043835,120]
[331363100,1720275054507,-3621.566451,0.00043835,14]
[331363101,1720275054531,-500.0,0.00043835,120]
[331363102,1720275054543,-3621.566451,0.00043835,14]
[331363103,1720275054553,-500.0,0.00043835,120]
[331363104,1720275054564,-571.186229,0.00043835,14]
[331363105,1720275054574,-511.4377051,0.00043835,120]
[331363106,1720275054585,-500.0,0.00043835,120]
[331363107,1720275054596,-3621.566451,0.00043835,14]
[331363108,1720275054620,-500.0,0.00043835,120]
[331363109,1720275054636,-571.186229,0.00043835,14]
[331363110,1720275054647,-571.186229,0.00043835,14]
[331363111,1720275054670,-571.186229,0.00043835,14]
[331363112,1720275054681,-3621.566451,0.00043835,14]
[331363113,1720275054691,-3621.566451,0.00043835,14]
[331363114,1720275054702,-571.186229,0.00043835,14]
[331363115,1720275054717,-3621.566451,0.00043835,14]
[331363116,1720275054728,-571.186229,0.00043835,14]
[331363117,1720275054739,-500.0,0.00043835,120]
[331363118,1720275054807,-3621.566451,0.00043835,14]
[331363119,1720275054818,-3621.566451,0.00043835,14]
[331363120,1720275054848,-571.186227,0.00043835,14]
[331363121,1720275054865,-500.0,0.00043835,120]
[331363122,1720275054881,-3621.566451,0.00043835,14]
[331363123,1720275054906,-3621.566446,0.00043835,14]
[331363124,1720275054917,-514.5,0.00043835,120]
[331363125,1720275054928,-613.04579308,0.00043835,120]
[331363126,1720275054939,-1473.88,0.00043835,120]
[331363127,1720275054949,-3468.61,0.00043835,120]
[331363128,1720275054960,-180.373689,0.00043835,14]
[331363129,1720275054975,-180.373689,0.00043835,14]
[331363130,1720275054987,-180.373689,0.00043835,14]
[331363131,1720275054998,-500.0,0.00043835,120]
[331363132,1720275055010,-180.373689,0.00043835,14]
[331363133,1720275055031,-500.0,0.00043835,120]
[331363134,1720275055045,-500.0,0.00043835,120]
[331363135,1720275055056,-180.373689,0.00043835,14]
[331363136,1720275055066,-500.0,0.00043835,120]
[331363137,1720275055077,-500.0,0.00043835,120]
[331363138,1720275055088,-177.195108,0.00043835,120]
[331363139,1720275055101,-180.373689,0.00043835,14]
[331363140,1720275055112,-180.373689,0.00043835,14]
[331363141,1720275055123,-180.373689,0.00043835,14]
[331363142,1720275055189,-180.373689,0.00043835,14]
[331363143,1720275055213,-500.0,0.00043835,120]
[331363144,1720275055226,-5591.97,0.00043835,120]
[331363145,1720275055311,-500.0,0.00043835,120]
[331363146,1720275055322,-501.33884234,0.00043835,120]
[331363147,1720275055347,-180.373689,0.00043835,14]
[331363148,1720275055359,-1570.32,0.00043835,120]
[331363149,1720275055378,-1404.1521369,0.00043835,120]
[331363151,1720275056317,-4209.3078631,0.00043835,120]
[331363152,1720275056327,-1082.39,0.00043835,120]
[331363153,1720275056343,-526.44891178,0.00043835,2]
[331363154,1720275057547,-154.63660398,0.00040999,4]
[331363155,1720275057582,-500.0,0.00043824,31]
[331363156,1720275057606,-4928.44108822,0.00043835,2]
[331363157,1720275057647,-180.373689,0.00043835,14]
[331363158,1720275057673,-5454.89,0.00043835,2]
[331363159,1720275057723,-180.373689,0.00043835,14]
[331363160,1720275057774,-180.373689,0.00043835,14]
[331363161,1720275057785,-5454.89,0.00043835,2]
[331363162,1720275057812,-5454.89,0.00043835,2]
[331363163,1720275057854,-180.373689,0.00043835,14]
[331363164,1720275057901,-5454.89,0.00043835,2]
[331363165,1720275057946,-180.373689,0.00043835,14]
[331363166,1720275057957,-180.373689,0.00043835,14]
[331363167,1720275057969,-5454.89,0.00043835,2]
[331363168,1720275058004,-203.4301738,0.00043835,2]
[331363169,1720275059301,271.41512628,0.0002909,2]
[331363170,1720275072355,154.63660398,0.0002909,2]
[331363171,1720275073109,934.12399024,0.0002909,2]
[331363172,1720275075336,301.86029608,0.0002909,2]
[331363173,1720275079395,493.55538733,0.0002909,2]
[331363174,1720275081031,271.36131811,0.0002909,2]
[331363175,1720275083192,184.20852579,0.0002909,2]
[331363176,1720275085853,241.53891779,0.0002909,2]
[331363177,1720275091708,1986.97335839,0.0002909,2]
[331363178,1720275095207,155.13373921,0.0002909,2]
[331363179,1720275097353,117.38490632,0.0002909,2]
[331363180,1720275097438,122.60843572,0.0002909,2]
[331363181,1720275100655,264.87431736,0.0002909,2]
[331363182,1720275100731,1986.97335839,0.0002909,2]
[331363183,1720275105226,730.77113244,0.0002909,2]
[331363184,1720275124687,155.1038004,0.0003526,4]
[331363185,1720275136570,322.44786838,0.0003526,4]
[331363186,1720275152947,1807.72624159,0.0003526,4]
[331363187,1720275158747,163.0204531,0.0003526,4]
[331363188,1720275179193,322.44786838,0.0003526,4]
[331363189,1720275179451,948.9256647,0.0003526,4]
[331363190,1720275189739,789.77698638,0.0003526,4]
[331363191,1720275192816,531.56332391,0.00036,30]
[331363207,1720275783035,332.61,0.0001,10]
[331363208,1720275840897,1500.0,0.00012121,2]
[331363209,1720275847199,667.57224635,0.0001,2]
[331363212,1720275924576,4375.31724682,0.00012121,2]
[331363216,1720276031071,7492.31219713,0.00014692,2]
[331363217,1720276033170,-161.300767,0.00021096,2]
[331363218,1720276033193,-154.69833824,0.0003,4]
[331363219,1720276033214,-322.44786838,0.00034669,4]
[331363220,1720276033235,-200.246261,0.00036708,2]
[331363221,1720276033256,-161.82297014,0.0003701,4]
[331363222,1720276033280,-322.98110875,0.0003701,2]
[331363223,1720276033300,-155.82272078,0.00037357,4]
[331363224,1720276033322,-310.14420599,0.00037523,4]
[331363225,1720276033342,-441.06386757,0.00039894,2]
[331363226,1720276035618,3138.53434768,0.00014692,2]
[331363227,1720276036607,174.59912253,0.00014692,2]
[331363228,1720276039831,2118.3618334,0.00014692,2]
[331363229,1720276041148,1104.97720039,0.00015,2]
[331363230,1720276041561,869.79610735,0.00014692,2]
[331363231,1720276042328,323.86322656,0.00014692,2]
[331363232,1720276043498,11032.37191529,0.00014692,2]
[331363234,1720276045391,372.20588866,0.000165,2]
[331363235,1720276045442,1229.17431562,0.00014692,2]
[331363236,1720276046746,155.11417392,0.00014692,2]
[331363237,1720276046904,211.90830169,0.00014692,2]
[331363238,1720276048147,-340.29809629,0.0002,2]
[331363239,1720276048188,8918.95573056,0.00014692,2]
[331363240,1720276049184,1314.93614605,0.00014692,2]
[331363241,1720276049210,451.28393557,0.00014692,2]
[331363242,1720276049726,356.35568753,0.00014692,2]
[331363243,1720276051950,270.77422265,0.00014692,2]
[331363244,1720276052262,881.10329184,0.00014692,2]
[331363245,1720276052992,949.12073475,0.00015,2]
[331363247,1720276054751,155.34859445,0.00014692,2]
[331363248,1720276055775,1916.81717141,0.00014692,2]
[331363249,1720276057140,3773.14321747,0.00014692,2]
[331363250,1720276059160,4387.41689241,0.00014692,2]
[331363251,1720276061205,304.44609204,0.00014692,2]
[331363252,1720276063624,268.45033025,0.00014692,7]
[331363253,1720276064616,1489.50426345,0.00014692,2]
[331363254,1720276066571,250.73477693,0.00014692,2]
[331363256,1720276072198,175.06419494,0.00014692,2]
[331363258,1720276116021,251.73213452,0.00016255,2]
[331363259,1720276117352,188.24500969,0.00016255,2]
[331363260,1720276125033,1086.61186892,0.00016255,2]
[331363261,1720276126255,166.47861002,0.00016255,2]
[331363262,1720276126290,155.14184401,0.00016255,2]
[331363264,1720276126696,601.0404053,0.00016255,2]
[331363265,1720276127082,1634.59229075,0.00016255,2]
[331363266,1720276129441,448.41697734,0.00016255,2]
[331363267,1720276131048,250.59593253,0.00016255,2]
[331363268,1720276132745,885.39104552,0.00016255,2]
[331363269,1720276132776,155.46811998,0.00016255,2]
[331363270,1720276132962,720.91947145,0.00016255,2]
[331363271,1720276134875,360.16423676,0.00016255,2]
[331363272,1720276139101,154.71377951,0.00016255,2]
[331363273,1720276140457,379.32113345,0.00016255,2]
[331363274,1720276143418,670.52354543,0.00016255,2]
[331363275,1720276144990,155.2536449,0.00016255,2]
[331363276,1720276147752,199.29274924,0.00016255,2]
[331363277,1720276147819,155.19639919,0.00016255,2]
[331363278,1720276148285,1392.46209166,0.00016255,2]
[331363279,1720276149946,696.2767755,0.00016255,2]
[331363280,1720276150019,-300.0,0.00017807,2]
[331363281,1720276150043,-300.0,0.00017807,2]
[331363282,1720276150066,-525.93863422,0.00017808,2]
[331363283,1720276150089,-181.84215111,0.00017808,2]
[331363284,1720276150112,-326.08946548,0.00017808,2]
[331363285,1720276150137,-205.3687641,0.00017808,2]
[331363286,1720276150159,-808.0087546,0.00017808,2]
[331363287,1720276150184,-4913.90159646,0.00017808,2]
[331363288,1720276150209,-203.74104378,0.00017808,2]
[331363289,1720276150233,-158.28310136,0.00017808,7]
[331363290,1720276150257,-1974.23797494,0.00017808,2]
[331363291,1720276150282,-155.0203609,0.00017808,2]
[331363292,1720276150306,-3773.14321747,0.00017808,2]
[331363293,1720276150329,-657.85977201,0.00017808,2]
[331363294,1720276150351,-511.39547482,0.00017808,2]
[331363295,1720276150377,-293.25344581,0.00018,2]
[331363296,1720276150400,-255.61525075,0.00019,2]
[331363297,1720276150426,-499.51977057,0.00019,3]
[331363298,1720276150451,-420.0,0.00019433,2]
[331363299,1720276150474,-94.70190371,0.0002,2]
[331363300,1720276151288,-4173.5699611,0.0002,2]
[331363301,1720276151312,-154.71377951,0.0002,2]
[331363302,1720276151334,-625.14049382,0.0002,2]
[331363303,1720276151356,-187.58512958,0.0002,2]
[331363304,1720276151378,-610.45539737,0.0002,2]
[331363305,1720276151555,-506.66081686,0.0002,2]
[331363306,1720276151577,-154.77557542,0.0002,2]
[331363307,1720276151602,-169.828501,0.00021096,2]
[331363308,1720276151625,-587.0,0.00021208,2]
[331363309,1720276151647,-629.88836004,0.00023032,2]
[331363310,1720276151670,-313.0,0.00023145,2]
[331363311,1720276151692,-290.27376141,0.00025,2]
[331363312,1720276151713,-269.02930338,0.000274,2]
[331363313,1720276151734,-3583.72483318,0.00028,30]
[331363314,1720276151754,-412.07735676,0.00028,2]
[331363315,1720276151778,-1745.5702955,0.00029035,2]
[331363316,1720276151799,-495.50543718,0.0003,4]
[331363317,1720276151825,-369.72554492,0.0003,3]
[331363318,1720276151849,-309.7057795,0.0003,4]
[331363319,1720276151869,-154.71377951,0.0003,4]
[331363320,1720276151890,-173.5807378,0.00030226,120]
[331363321,1720276151911,-473.49064314,0.00032207,30]
[331363322,1720276151932,-2826.88031079,0.000325,60]
[331363323,1720276152336,-232.938605,0.00034403,2]
[331363324,1720276152359,-322.44786838,0.0003463,4]
[331363325,1720276152383,-962.96577273,0.00035,4]
[331363326,1720276152405,-154.99342721,0.0003558,4]
[331363327,1720276152428,-260.98144755,0.00036,30]
[331363328,1720276157127,-249.92344191,0.000392,10]
[331363329,1720276161039,525.93863422,0.00016255,2]
[331363330,1720276162152,205.3687641,0.00016255,2]
[331363332,1720276183442,202.94259115,0.00020996,2]
[331363333,1720276186527,155.26748535,0.00017808,2]
[331363334,1720276186894,3078.51196359,0.00017808,2]
[331363335,1720276193849,1887.47244607,0.00017808,2]
[331363336,1720276193886,2835.71859318,0.00017808,2]
[331363339,1720276210636,1392.46209166,0.00016255,2]
[331363340,1720276210690,586.71701178,0.00030241,2]
[331363341,1720276213024,250.0,0.00037474,2]
[331363376,1720276235101,-314.27902116,0.0004,120]
[331363379,1720276235129,-669.73923182,0.0004,4]
[331363386,1720276236017,154.71377951,0.000392,4]
[331363588,1720276243383,-120.0313213,0.0004,4]
[331363591,1720276243394,-727.49132511,0.00040599,20]
[331363595,1720276243409,-7517.47101641,0.00042,35]
[331363598,1720276243420,-1000.0,0.000425,120]
[331363600,1720276243431,-537.32517777,0.000425,30]
[331363601,1720276243443,-878.0,0.00043601,2]
[331363602,1720276243457,-164.1961937,0.00043699,31]
[331363603,1720276243469,-500.0,0.00043699,7]
[331363604,1720276243482,-362.22765402,0.00043699,31]
[331363605,1720276243496,-500.0,0.00043699,7]
[331363606,1720276243512,-500.0,0.00043699,7]
[331363607,1720276243523,-500.0,0.00043699,7]
[331363608,1720276243536,-500.0,0.00043699,7]
[331363609,1720276243554,-500.0,0.00043699,7]
[331363610,1720276243566,-500.0,0.00043699,7]
[331363611,1720276243801,-500.0,0.00043699,7]
[331363612,1720276243813,-500.0,0.00043699,7]
[331363613,1720276243826,-500.0,0.00043699,7]
[331363614,1720276243839,-500.0,0.00043699,7]
[331363615,1720276243857,-500.0,0.00043699,7]
[331363616,1720276243867,-500.0,0.00043699,7]
[331363617,1720276243882,-500.0,0.00043699,7]
[331363618,1720276243895,-500.0,0.00043699,7]
[331363619,1720276243906,-48844.504399,0.000437,120]
[331363620,1720276243927,-1211.41498576,0.00043734,2]
[331363621,1720276243939,-1211.41498576,0.00043734,2]
[331363622,1720276243953,-1211.41498576,0.00043735,2]
[331363623,1720276243965,-1211.41498576,0.00043735,2]
[331363624,1720276243988,-1211.41498576,0.00043735,2]
[331363625,1720276244008,-2000.0,0.00043735,2]
[331363626,1720276244021,-155.0,0.000438,47]
[331363627,1720276244035,-231.28,0.00043805,30]
[331363628,1720276244046,-231.28,0.00043805,30]
[331363629,1720276244078,-231.28,0.00043805,30]
[331363630,1720276244106,-142556.138812,0.00043815,5]
[331363631,1720276244123,-16809.90524094,0.00043825,31]
[331363632,1720276244138,-114044.91105,0.00043825,5]
[331363633,1720276244152,-4850.08334606,0.00043833,120]
[331363634,1720276244175,-500.0,0.00043834,31]
[331363635,1720276244186,-209.64845195,0.00043834,31]
[331363636,1720276244203,-316.5767195,0.00043834,21]
[331363637,1720276244216,-1230.92681196,0.00043834,4]
[331363638,1720276244231,-400.205078,0.00043834,4]
[331363639,1720276244277,-7983.41628383,0.00043834,4]
[331363640,1720276244288,-247.72439914,0.00043834,2]
[331363641,1720276244300,-497.03358617,0.00043834,4]
[331363642,1720276244310,-302.65403772,0.00043834,2]
[331363643,1720276244322,-1705.25779863,0.00043834,4]
[331363644,1720276244333,-1463.29635585,0.00043834,4]
[331363645,1720276244344,-500.0,0.00043835,120]
[331363646,1720276244356,-505.79277008,0.00043835,120]
[331363647,1720276244366,-500.0,0.00043835,120]
[331363648,1720276244382,-500.0,0.00043835,120]
[331363649,1720276244404,-168.813995,0.00043835,14]
[331363650,1720276244423,-500.0,0.00043835,120]
[331363651,1720276244435,-500.0,0.00043835,120]
[331363652,1720276244447,-500.0,0.00043835,120]
[331363653,1720276244458,-664.19,0.00043835,120]
[331363654,1720276244480,-500.0,0.00043835,120]
[331363655,1720276244496,-766.72,0.00043835,120]
[331363656,1720276244509,-500.0,0.00043835,120]
[331363657,1720276244519,-500.0,0.00043835,120]
[331363658,1720276244532,-421.47916028,0.00043835,120]
[331363659,1720276244546,-500.0,0.00043835,120]
[331363660,1720276244559,-500.0,0.00043835,120]
[331363661,1720276244569,-500.0,0.00043835,120]
[331363662,1720276244585,-201.27306311,0.00043835,120]
[331363663,1720276244596,-500.0,0.00043835,120]
[331363664,1720276244619,-504.96556493,0.00043835,120]
[331363665,1720276244634,-500.0,0.00043835,120]